Cogmind - Beta 13 @@@ ROGUE MODE // 2024.04.28 @ 20:56:36 Player: Faunarr Result: Destroyed by O0-XXS(R) with Subdweller Shrapnel Launcher Performance ------------- Evolutions (0) 0 Regions Visited (3) 600 Robots Destroyed (21) 105 Value Destroyed (567) 567 Prototype IDs (0) 0 Alien Tech Used (0) 0 Bonus (0) 0 TOTAL SCORE: 1272 Bonus ------- None Cogmind --------- Core Integrity 0/250 Matter 297/300 Energy 112/125 System Corruption 0% Temperature Cool (2) Movement Treading (320) Ox2 Location -10/Subcaves Parts ------- > --- POWER (1) -------- Light Ion Engine > --- PROPULSION (2) --- Light Treads > --- UTILITY (2) ------ High-capacity Storage Unit Seismic Detector > --- WEAPON (2) ------- Heavy Assault Rifle Plasma Flamer > --- INVENTORY (20) --- Small Storage Unit Large Storage Unit Improved Terrain Scanner Heavy EM Pulse Gun Heavy EM Pulse Gun EMP Blaster Peak State ------------ > --- POWER ------------ Light Nuclear Core > --- PROPULSION ------- Light Treads Wheel > --- UTILITY ---------- High-capacity Storage Unit Seismic Detector > --- WEAPON ----------- Medium Laser Heavy Assault Rifle > --- INVENTORY -------- Light Ion Engine Light Treads Small Storage Unit Large Storage Unit Improved Terrain Scanner Heavy EM Pulse Gun Heavy EM Pulse Gun Heavy Assault Rifle EMP Blaster Plasma Flamer [Rating: 12] Favorites ----------- Power Light Nuclear Core Engine Light Ion Engine Power Core Light Nuclear Core Propulsion Light Treads Treads Light Treads Wheel Wheel Utility High-capacity Storage Unit Device Seismic Detector Storage High-capacity Storage Unit Weapon Heavy Assault Rifle Energy Gun Medium Laser Ballistic Gun Heavy Assault Rifle Launcher EMP Blaster Special Weapon Plasma Flamer Build | -11 -10 -10 -10 ------- Run | Yrd Mat Min Sub Slots Evolved . | . . . . Power . | . . . . Propulsion . | . . . . Utility . | . . . . Weapon . | . . . . Parts Attached 23 | 9 6 3 5 Power 5 | 2 1 1 1 Engine 4 | 2 1 . 1 Core 1 | . . 1 . Reactor . | . . . . Propulsion 5 | 3 1 . 1 Treads 3 | 2 . . 1 Leg . | . . . . Wheel 2 | 1 1 . . Hover . | . . . . Flight . | . . . . Utility 5 | 2 2 1 . Device 2 | 1 . 1 . Storage 3 | 1 2 . . Processor . | . . . . Hackware . | . . . . Protection . | . . . . Artifact . | . . . . Weapon 8 | 2 2 1 3 Energy Gun 3 | 1 1 1 . Energy Cannon . | . . . . Ballistic Gun 3 | 1 1 . 1 Ballistic Cannon . | . . . . Launcher 1 | . . . 1 Special Weapon 1 | . . . 1 Impact Weapon . | . . . . Slashing Weapon . | . . . . Piercing Weapon . | . . . . Special Melee Weapon . | . . . . Unidentified Prototypes . | . . . . Parts Lost 7 | . 2 1 4 Power 2 | . 1 . 1 Propulsion 3 | . 1 . 2 Utility . | . . . . Weapon 2 | . . 1 1 Highest Loss Streak 2 | . 2 1 2 To Critical Strikes . | . . . . Average Slot Usage (%) 94 | . 91 99 80 Engine 6 | . 13 3 5 Core 6 | . . 10 1 Treads 13 | . 14 14 12 Wheel 12 | . 13 14 7 Device 12 | . 6 14 14 Storage 14 | . 14 14 14 Energy Gun 11 | . 14 13 . Ballistic Gun 14 | . 14 14 14 Special Weapon 1 | . . . 8 Naked Turns . | . . . . Heaviest Build 52 | 13 50 52 52 Greatest Support 40 | 40 10 10 20 Greatest Overweight (x) 15 | 1 4 5 15 Average Overweight (x) 3 | . 2 4 3 Largest Inventory Capacity 20 | 8 20 20 20 Average Capacity 18 | 7 17 20 20 Most Carried 11 | 5 11 10 9 Average Carried 8 | 3 7 9 7 Final Capacity 20 | 8 20 20 20 Final Carried 9 | 5 9 9 6 Class Distribution -------------------- 100% | Mutant Dominant Class ---------------- Mutant | -10/Materials Mutant | -10/Mines Mutant | -10/Subcaves Resources | -11 -10 -10 -10 ----------- Run | Yrd Mat Min Sub Matter Collected 592 | 297 101 75 119 Remotely . | . . . . Salvage Created 735 | 102 206 246 181 Parts 46 | 13 8 12 13 Haulers Intercepted . | . . . . Recyclers Shooed 1 | 1 . . . Parts Field Recycled . | . . . . Retrieved Matter . | . . . . Parts Self-Destructed 13 | . . . 13 Prevented 2 | . . . 2 Kills | -11 -10 -10 -10 ------- Run | Yrd Mat Min Sub Combat Hostiles Destroyed 17 | . 5 5 7 Guns 13 | . 5 5 3 Cannons 2 | . . . 2 AOE 2 | . . . 2 Classes Destroyed 5 | 2 1 . 2 Tunneler 3 | 3 . . . Recycler 1 | 1 . . . Swarmer 4 | . . . 4 Grunt 12 | . 5 5 2 Subdweller 1 | . . . 1 Best Kill Streak 4 | 4 2 2 3 Combat Bots Only 3 | . 2 2 3 Max Kills in Single Turn 1 | 1 1 1 1 Gunslinging . | . . . . Exploded 1 | . . . 1 Melee . | . . . . Uniques/NPCs Destroyed . | . . . . Combat | -11 -10 -10 -10 -------- Run | Yrd Mat Min Sub Hostile Shots Fired 117 | . 44 21 52 Missed 38 | . 9 6 23 Damage Taken 1136 | . 483 223 430 Core 278 | . 120 12 146 Absorbed by Shields . | . . . . Core Remaining (%) 100 | 100 . . . Volleys Fired 76 | 11 29 16 20 Largest 2 | 2 2 2 2 Hottest 123 | 60 73 73 123 Shots Fired 143 | 22 58 30 33 Gun 131 | 22 58 30 21 Cannon . | . . . . Launcher 6 | . . . 6 Special 6 | . . . 6 Kinetic 77 | 11 29 16 21 Thermal 52 | 11 29 6 6 Explosive . | . . . . Electromagnetic 14 | . . 8 6 Robot Hit Streak 7 | 7 6 7 6 Robot Miss Streak 4 | 1 2 4 3 Penetration Max . | . . . . Secondary Targets . | . . . . Shots Hit Robots 87 | 14 39 17 17 Core Hits 34 | 5 10 8 11 Critical Kills . | . . . . Critical Parts Destroyed 2 | 1 1 . . Critical Strikes 4 | 1 1 2 . Burn 1 | . . 1 . Destroy 2 | 1 1 . . Corrupt 1 | . . 1 . Melee Attacks . | . . . . Impact . | . . . . Slashing . | . . . . Piercing . | . . . . Sneak Attacks . | . . . . Combat Hostiles . | . . . . Follow-up Attacks . | . . . . Damage Inflicted 1235 | 138 424 264 409 Guns 991 | 138 424 248 181 Cannons . | . . . . Explosions 190 | . . . 190 Melee . | . . . . Ramming 16 | . . 16 . Kinetic 509 | 37 184 107 181 Thermal 440 | 101 240 61 38 Explosive . | . . . . Electromagnetic 270 | . . 80 190 Impact . | . . . . Slashing . | . . . . Piercing . | . . . . Highest Corruption . | . . . . Average Corruption . | . . . . Corruption Purged . | . . . . Corruption Blocked . | . . . . Overload Shots . | . . . . Overflow Damage . | . . . . Projectiles . | . . . . Explosions . | . . . . Melee . | . . . . Knockbacks . | . . . . Impact . | . . . . Kinetic . | . . . . Secondary . | . . . . Self-Inflicted Damage 74 | . . 8 66 Shots 4 | . . . 4 Rammed 1 | . . 1 . Targets Rammed 1 | . . 1 . Kicked . | . . . . Crushed . | . . . . Highest Temperature 150 | 40 150 120 8 Average Temperature 42 | 27 47 44 4 Received Heat Transfer 489 | . 252 141 96 Siege Activations . | . . . . Robots Corrupted . | . . . . Combat Hostiles . | . . . . Parts Fried 1 | . . . 1 Impact Corruptions . | . . . . Robots Melted . | . . . . Combat Hostiles . | . . . . Parts Melted . | . . . . Heat Transferred 1321 | 225 597 259 240 Parts Sabotaged . | . . . . Parts Stolen . | . . . . Parts Stripped . | . . . . Power Chain Reactions 1 | . . . 1 Alert | -11 -10 -10 -10 ------- Run | Yrd Mat Min Sub Peak Influence 108 | 20 108 70 . Initial 36 | . 13 36 . Average 30 | 8 61 21 . Maximum Alert Level . | . . . . Low Security (%) 100 | 100 100 100 . Level 1 . | . . . . Level 2 . | . . . . Level 3 . | . . . . Level 4 . | . . . . Level 5 . | . . . . High Security . | . . . . Max Security . | . . . . Squads Dispatched 2 | . 2 . . Investigation 1 | . 1 . . Extermination . | . . . . Reinforcement 1 | . 1 . . Assault . | . . . . Garrison . | . . . . Intercept . | . . . . Searches Triggered . | . . . . Construction Impeded . | . . . . Haulers Reinforced . | . . . . Active Scanning Responses . | . . . . Cargo Convoy Interrupts . | . . . . Stealth | -11 -10 -10 -10 --------- Run | Yrd Mat Min Sub Distress Signals . | . . . . Communications Jammed . | . . . . Distress Signals . | . . . . Times Spotted 25 | . 9 5 11 Peak Tracking Total 4 | . 3 2 4 Tactical Retreats 4 | . 2 . 2 Traps | -11 -10 -10 -10 ------- Run | Yrd Mat Min Sub Traps Triggered 2 | . 2 . . Indirectly . | . . . . Trap Hack Attempts . | . . . . Triggered . | . . . . Disarmed . | . . . . Reprogrammed . | . . . . Reused . | . . . . Traps Extracted . | . . . . Installed . | . . . . Triggered . | . . . . Machines | -11 -10 -10 -10 ---------- Run | Yrd Mat Min Sub Machines Disabled . | . . . . Max in Single Turn . | . . . . Machines Repaired . | . . . . Machines Dismantled . | . . . . Machines Sabotaged . | . . . . Overloaded Fab Kills . | . . . . Hacking | -11 -10 -10 -10 --------- Run | Yrd Mat Min Sub Machines Accessed 3 | . 3 . . Terminals 3 | . 3 . . Fabricators . | . . . . Repair Stations . | . . . . Recycling Units . | . . . . Scanalyzers . | . . . . Garrison Access . | . . . . Total Hacks 4 | . 4 . . Successful 2 | . 2 . . Failed 2 | . 2 . . Catastrophic . | . . . . Database Lockouts . | . . . . Manual 5 | . 5 . . Terminals 4 | . 4 . . Fabricators . | . . . . Repair Stations . | . . . . Recycling Units . | . . . . Scanalyzers . | . . . . Garrison Access . | . . . . Terminal Hacks . | . . . . Fabricator Hacks . | . . . . Repair Station Hacks . | . . . . Recycling Unit Hacks . | . . . . Scanalyzer . | . . . . Garrison Access Hacks . | . . . . Unauthorized Hacks 2 | . 2 . . Terminals 2 | . 2 . . Track 1 | . 1 . . Operators 1 | . 1 . . Fabricators . | . . . . Repair Stations . | . . . . Recycling Units . | . . . . Scanalyzers . | . . . . Garrison Access . | . . . . Data Cores Recovered . | . . . . Used . | . . . . Hacking Detections 3 | . 3 . . Full Trace Events . | . . . . Feedback Events . | . . . . Feedback Blocked . | . . . . Robot Schematics Acquired . | . . . . Robots Built . | . . . . Authchips . | . . . . Time . | . . . . Total Robot Build Rating . | . . . . Part Schematics Acquired . | . . . . Parts Built . | . . . . Authchips . | . . . . Time . | . . . . Total Part Build Rating . | . . . . Parts Repaired . | . . . . Time . | . . . . Parts Recycled . | . . . . Recycled Matter . | . . . . Retrieved Matter . | . . . . Retrieved Components . | . . . . Parts Scanalyzed . | . . . . Part Schematics Acquired . | . . . . Parts Damaged . | . . . . Bothacking | -11 -10 -10 -10 ------------ Run | Yrd Mat Min Sub Used RIF Installer . | . . . . Robots Hacked . | . . . . Non-combat . | . . . . Combat . | . . . . Robot Hacks Applied . | . . . . Relay Couplers Released . | . . . . Fabnet Peak Effective % . | . . . . Robots Rewired . | . . . . Allies Hacked . | . . . . Hacks Repelled . | . . . . Allies | -11 -10 -10 -10 -------- Run | Yrd Mat Min Sub Total Allies . | . . . . Largest Group . | . . . . Highest-Rated Group . | . . . . Highest-Rated Ally . | . . . . Total Orders . | . . . . Ally Attacks . | . . . . Total Damage . | . . . . Kills . | . . . . Allies Corrupted . | . . . . Allies Melted . | . . . . Intel | -11 -10 -10 -10 ------- Run | Yrd Mat Min Sub Robot Analysis Total . | . . . . Derelict Logs Recovered 3 | . . 2 1 Drone Launches . | . . . . Drone Recoveries . | . . . . Exploration | -11 -10 -10 -10 ------------- Run | Yrd Mat Min Sub Turns Passed 2511 | 119 522 1480 390 Spaces Moved 1447 | 74 336 870 167 Core 3 | 2 . . 1 Treads 49 | 3 . . 46 Legs . | . . . . Wheels 1395 | 69 336 870 120 Hover . | . . . . Flight . | . . . . Fastest Speed 50 | 50 95 140 140 Average Speed 146 | 94 122 150 194 Slowest Speed 800 | 160 140 155 800 Overloaded Moves . | . . . . Propulsion Burnouts . | . . . . Robots Hopped . | . . . . Cave-ins Triggered . | . . . . Exploration Rate (%) 44 | 4 63 100 12 Regions Visited 3 Branch Regions 2 Pre-discovered Areas 2 | . . 2 . Known Exits Taken . | . . . . Unknown Exits Taken 3 | 1 1 1 . Scrap Searched 3 | . . 1 2 Spaces Dug . | . . . . Terrain Destroyed . | . . . . Melee . | . . . . Projectile . | . . . . AOE . | . . . . Terrain Rammed . | . . . . Walls Destroyed . | . . . . Machines Disabled . | . . . . Actions | -11 -10 -10 -10 --------- Run | Yrd Mat Min Sub Total 1699 | 98 393 1012 196 Wait 142 | . 16 122 4 Move 1444 | 73 335 869 167 Hop . | . . . . Pick Up 10 | 5 4 1 . Fast Attach 7 | 7 . . . Attach 7 | . 2 2 3 Detach 1 | . 1 . . Swap 9 | 2 4 1 2 Drop 2 | . 2 . . Fire 76 | 11 29 16 20 Melee . | . . . . Ram 1 | . . 1 . Kick . | . . . . Crush . | . . . . Escape Stasis . | . . . . Rewire . | . . . . Trap . | . . . . Miscellaneous . | . . . . Route ------- -11/Scrapyard -10/Materials (discovered 2 exits: [*Mat] / [*Min]) -10/Mines (discovered 3 exits: [*Mat x2] / [*Sub]) -10/Subcaves History --------- Turn | Location | Event 35 | -11/Scrapyard | Discovered new exit (range 15) 120 | -11/Scrapyard | Entered Materials 180 | -10/Materials | Discovered new exit (range 5) 310 | -10/Materials | Build established: Mutant 623 | -10/Materials | Discovered new exit (range 7) 642 | -10/Materials | Entered Mines 862 | -10/Mines | Learned Materials terminal intel 866 | -10/Mines | A weapon hastily lodged in a ceiling crevice suddenly fell to the ground 1017 | -10/Mines | Discovered new exit (range 6) 1261 | -10/Mines | Learned location of Storage (-7) 1266 | -10/Mines | Discovered new exit (range 6) 1916 | -10/Mines | Excavation squad dispatched 1916 | -10/Mines | A large section of the Mines collapsed 2055 | -10/Mines | Core integrity fell below 50% 2114 | -10/Mines | Discovered new exit (range 5) 2122 | -10/Mines | Entered Subcaves 2348 | -10/Subcaves | Core integrity fell below 20% 2455 | -10/Subcaves | Learned Materials interactive machine intel 2512 | -10/Subcaves | Destroyed by O0-XXS(R) with Subdweller Shrapnel Launcher Last Messages --------------- repair. 02345_ Flight Unit fries itself beyond repair. 02345_ Lgt. Ion Engine fries itself beyond repair. 02349_ S-10 Pest destroyed. 02349_ Wheel destroyed. 02352_ Subatomizers dissect the Lgt. Ion Engine. 02355_ Flight Unit fries itself beyond repair. 02366_ Lgt. Ion Engine fries itself beyond repair. 02369_ Acquired 19 matter. 02388_ Subatomizers dissect the Corrupted Aluminum Leg. 02404_ Acquired 15 matter. 02429_ Subatomizers dissect the Corrupted Aluminum Leg, destroying it. 02455_ Acquired derelict log, extracted data. Data stored: Materials interactive machine intel. Map ----- +----------------------------------------------------+ | ??????????????????????????????????????????????? | | ??????????????????????????????????????????????? | | ??????????????????????????????????????????????? | | ??????????????????????????????????????????????? | | ??????????????????????????????????????????????? | | ??????????????????????????????????????????????? | | ??????????????????????????????????????????????? | | ??????????????????????????????????????????????? | | ???????????????????????#####??????????????????? | | ??????????????????????##"""#??????????????????? | | ??????????????????????#""""#??????????????????? | | ??????????????????""?## #??????????????????? | | ???????????????????"??" ##?????????????????? | | ???????????????????? ? ###???????????????? | | ?????????????? ?"#??# # #???????????????? | | ??????????????? ""### # ????????????????? | | ????????????????? #????????????????? | | ?????????????????? #????????????????? | | ??????????????????? ?????????????????? | | ?????????????????##? ? R #??????????????????? | | ?????????????????? ? ###R#??##???????????????? | | ??????????????????? #;#; ###;#???????????????? | | ????????????????????#;; ;; ##??????????????? | | ????????????????????## #??????????????? | | ????????????????????# #??????????????? | | ????????????????????# @ ##??????????????? | | ????????????????????#; ; ###?????????????? | | ????????????? ?????###;;; ; #?????????????? | | ????????????? ???????### ; ##?????????????? | | ????????????? ????????### # #?????????????? | | ????????????? ????##### #?????????????? | | ????????????? ???## #?????????????? | | ???????????## ???# # ###?????????????? | | ???????????# # ####???????????????? | | ???????? ### ##??????????????? | | ????????????# # # ### ##?????????????? | | ????????????# ###### ## #?????????????? | | ???????????? #?### # ## #??????????????? | | ????????????# ### #????????????????? | | ????????????#%%## ##????????????????? | | ????????????# ### ##?????????????????? | | #???????##### ###### #??????????????????? | | #??????## #????# #??????????????????? | | #??????# ##?####% #??????????????????? | | ###????# #?## #??????????????????? | | ######### #?# ##??????????????????? | | ## ##??# ##### ##??????????????????? | | #### #### ##?????????????????? | | #?????????????????? | | #?????????????????? | +----------------------------------------------------+ Best States ------------- Heat Dissipation 25 Energy Generation 14 Energy Capacity 250 Matter Stores 300 Matter Capacity 300 Sight Range 16 Terrain Scan Density 10 Evasion (%) 44 Recoil Reduction 2 Item Schematics ----------------- None Robot Schematics ------------------ None Fabricated ------------ Nothing Alien Tech Used ----------------- None Achievements -------------- None Challenges ------------ None Game ------ Seed FieldRelayRipper Manual? 0 Play Time 00:16:01 Cumulative 20.9 hours Start 2024.04.28 @ 20:42:30 End 2024.04.28 @ 20:56:36 Sessions 1 Manual Loads 0 Difficulty Rogue Special Mode None Game No. 41 Rogue 41 Adventurer 0 Explorer 0 Win Type - Total 0 Types 0/0/0/0/0/0/0/0/0 Lore% 19 Gallery% 27 Achievement% 25 Wizard Run 0 Options --------- Layout 1 ASCII 0 Keyboard 0 Movement Vi Keybinds 0 Fullscreen 2 Font 24/Smallcaps Map View 50x35 Zoom Use 0% Tactical HUD 1 Map Filters NONE Filters NONE Steam 1 RUN: 27e1c848-4c58-4edd-b0cb-d022b3647a04